bitfinex/quotes_SOLUSD_20250101
["timestamp","ask_amount","ask_price","bid_price","bid_amount"]
[1735690730680,1.5726,191.39,191.21,2.88162393]
[1735690730681,10.55448856,191.31,191.24,10.55448856]
[1735690732489,10.55448856,191.32,191.25,10.55448856]
[1735690733285,10.55448856,191.31,191.22,7.9398]
[1735690733478,10.55448856,191.3,191.24,10.55448856]
[1735690734797,13.0671,191.33,191.24,10.55448856]
[1735690734798,10.55448856,191.31,191.24,10.55448856]
[1735690736488,10.55448856,191.3,191.24,10.55448856]
[1735690736789,10.55448856,191.29,191.22,18.49428856]
[1735690738166,10.55448856,191.3,191.23,10.55448856]
[1735690739691,10.55448856,191.29,191.22,18.49428856]
[1735690740864,10.55448856,191.27,191.19,1.5767]
[1735690741085,10.55448856,191.26,191.19,12.13118856]
[1735690741461,10.55448856,191.27,191.2,10.55448856]
[1735690742170,10.55448856,191.28,191.2,10.55448856]
[1735690742572,10.55448856,191.29,191.22,10.55448856]
[1735690742971,10.55448856,191.28,191.21,10.55448856]
[1735690745796,10.55448856,191.28,191.2,10.55448856]
[1735690745996,10.55448856,191.28,191.21,10.55448856]
[1735690746371,13.0657,191.34,191.24,10.55448856]
[1735690746695,13.0657,191.34,191.23,10.55448856]
[1735690746873,10.55448856,191.28,191.22,1.80054928]
[1735690747194,10.55448856,191.25,191.22,1.80054928]
[1735690747700,10.55448856,191.26,191.19,12.13118856]
[1735690748069,10.55448856,191.22,191.19,1.5767]
[1735690748272,10.55448856,191.22,191.18,6.3631]
[1735690748471,10.55448856,191.22,191.15,10.55448856]
[1735690748705,10.55448856,191.24,191.17,10.55448856]
[1735690749690,10.55448856,191.25,191.18,10.55448856]
[1735690750697,10.55448856,191.26,191.19,10.55448856]
[1735690750901,10.55448856,191.24,191.14,7.7765]
[1735690751071,10.55448856,191.22,191.14,7.7765]
[1735690751400,13.0702,191.28,191.14,7.7765]
[1735690751401,10.55448856,191.2,191.15,4.69630003]
[1735690751569,10.55448856,191.21,191.15,15.25078859]
[1735690752190,10.55448856,191.21,191.16,1.80614371]
[1735690752883,10.55448856,191.21,191.14,18.33098856]
[1735690753086,10.55448856,191.2,191.14,7.7765]
[1735690753696,10.55448856,191.2,191.15,1.80801647]
[1735690754371,10.55448856,191.2,191.16,1.80801647]
[1735690754973,10.55448856,191.17,191.16,1.80801647]
[1735690755899,10.55448856,191.17,191.11,2.89616202]
[1735690756713,10.55448856,191.17,191.09,7.7765]
[1735690756714,10.55448856,191.15,191.09,7.7765]
[1735690757383,10.55448856,191.15,191.1,1.81130415]
[1735690758006,10.55448856,191.14,191.1,1.81130415]
[1735690758206,10.55448856,191.14,191.09,7.7765]
[1735690758576,10.55448856,191.15,191.09,7.7765]
[1735690758810,10.55448856,191.16,191.09,18.33098856]
[1735690759312,10.55448856,191.16,191.1,1.81126521]
[1735690759977,13.0742,191.22,191.11,10.55448856]
[1735690760196,10.55448856,191.22,191.15,10.55448856]
[1735690760397,10.55448856,191.24,191.17,10.55448856]
[1735690760704,10.55448856,191.24,191.18,10.55448856]
[1735690760879,10.55448856,191.24,191.17,10.55448856]
[1735690761209,10.55448856,191.23,191.16,10.55448856]
[1735690761507,10.55448856,191.23,191.17,10.55448856]
[1735690761895,10.55448856,191.24,191.17,10.55448856]
[1735690762274,10.55448856,191.23,191.17,10.55448856]
[1735690762470,10.55448856,191.24,191.17,10.55448856]
[1735690763300,10.55448856,191.23,191.16,12.12788856]
[1735690765403,10.55448856,191.23,191.17,10.55448856]
[1735690765609,10.55448856,191.24,191.17,10.55448856]
[1735690765905,10.55448856,191.23,191.17,10.55448856]
[1735690767597,10.55448856,191.24,191.18,10.55448856]
[1735690768307,10.55448856,191.25,191.18,10.55448856]
[1735690768507,10.55448856,191.27,191.2,10.55448856]
[1735690769085,10.55448856,191.26,191.19,10.55448856]
[1735690769311,10.55448856,191.26,191.2,20.0]
[1735690769714,10.55448856,191.25,191.2,20.0]
[1735690771215,10.55448856,191.25,191.19,10.55448856]
[1735690771718,10.55448856,191.24,191.17,6.0151]
[1735690771886,13.0695,191.29,191.17,8.90634067]
[1735690771887,10.55448856,191.23,191.17,8.90634067]
[1735690772087,10.55448856,191.19,191.17,2.89124067]
[1735690772286,10.55448856,191.18,191.17,2.89124067]
[1735690772515,10.55448856,191.18,191.13,4.69922103]
[1735690772814,20.0,191.21,191.13,4.69922103]
[1735690773113,10.55448856,191.15,191.13,4.69922103]
[1735690773308,10.55448856,191.15,191.11,1.5734]
[1735690774510,10.55448856,191.15,191.08,16.56958856]
[1735690775230,10.55448856,191.15,191.09,1.80952036]
[1735690775929,10.55448856,191.15,191.1,1.80952036]
[1735690776505,10.55448856,191.15,191.09,2.89575834]
[1735690777404,10.55448856,191.16,191.09,10.55448856]
[1735690778144,13.0753,191.2,191.09,10.55448856]
[1735690778430,10.55448856,191.17,191.1,15.25863596]
[1735690778730,10.55448856,191.21,191.14,10.55448856]
[1735690779833,10.55448856,191.21,191.15,1.80916118]
[1735690780220,10.55448856,191.2,191.15,1.80916118]
[1735690780431,10.55448856,191.2,191.13,10.55448856]
[1735690780901,10.55448856,191.17,191.08,6.0151]
[1735690781102,10.55448856,191.16,191.14,4.7036683]
[1735690781319,10.55448856,191.17,191.14,7.58669688]
[1735690781726,10.55448856,191.17,191.11,2.88302858]
[1735690782233,10.55448856,191.17,191.12,1.81001504]
[1735690782404,10.55448856,191.18,191.12,1.81001504]
[1735690782608,10.55448856,191.21,191.14,10.55448856]
[1735690783215,10.55448856,191.22,191.14,10.55448856]
[1735690783416,10.55448856,191.22,191.15,32.3645036]
[1735690784141,10.55448856,191.2,191.16,2.88374888]
[1735690784346,10.55448856,191.17,191.16,7.58927808]
[1735690784643,10.55448856,191.17,191.16,4.7055292]
[1735690785036,10.55448856,191.17,191.11,6.13883582]
[1735690785244,10.55448856,191.17,191.11,16.69332438]
[1735690785549,1.5445,191.24,191.13,10.55448856]
[1735690785722,10.55448856,191.18,191.12,4.7063744]
[1735690785927,10.55448856,191.15,191.12,4.7063744]
[1735690786130,10.55448856,191.15,191.13,2.88374888]
[1735690786365,16.48267585,191.15,191.13,4.69460912]
[1735690786519,16.48267585,191.14,191.13,4.69460912]
[1735690786908,16.48267585,191.14,191.1,2.88374888]
[1735690787113,16.48267585,191.12,191.1,2.88374888]
[1735690787532,16.48267585,191.13,191.1,2.88374888]
[1735690787729,16.48267585,191.13,191.08,20.0]
[1735690788047,16.48267585,191.14,191.07,16.48267585]
[1735690788344,16.48267585,191.13,191.09,1.81322984]
[1735690788514,16.48267585,191.14,191.09,1.81322984]
[1735690789248,16.48267585,191.14,191.1,1.81322984]
[1735690789650,16.48267585,191.15,191.1,1.81322984]
[1735690789951,16.48267585,191.15,191.11,1.81322984]
[1735690790618,6.109,191.22,191.09,19.38393477]
[1735690790821,16.48267585,191.17,191.09,22.27417141]
[1735690791145,16.48267585,191.17,191.1,16.48267585]
[1735690791452,16.48267585,191.17,191.1,21.19640572]
[1735690791750,16.48267585,191.18,191.11,16.48267585]
[1735690792247,1.5445,191.24,191.16,16.48267585]
[1735690792455,16.48267585,191.24,191.17,16.48267585]
[1735690792818,16.48267585,191.24,191.18,1.81247095]
[1735690793558,16.48267585,191.23,191.18,1.81247095]
[1735690793733,16.48267585,191.24,191.19,1.81247095]
[1735690794046,16.48267585,191.26,191.19,18.2951468]
[1735690794250,16.48267585,191.26,191.2,1.81247095]
[1735690794935,16.48267585,191.26,191.21,1.81247095]
[1735690795233,16.48267585,191.25,191.21,1.81247095]
[1735690795756,16.48267585,191.25,191.19,16.48267585]
[1735690796046,16.48267585,191.25,191.18,16.48267585]
[1735690796549,16.48267585,191.25,191.19,21.19067908]
[1735690796716,16.48267585,191.25,191.19,24.0760253]
[1735690796920,16.48267585,191.25,191.19,7.59334945]
[1735690797145,16.48267585,191.25,191.2,1.8106441]
[1735690797757,16.48267585,191.27,191.2,18.29331995]
[1735690798126,16.48267585,191.27,191.21,1.8106441]
[1735690798727,16.48267585,191.26,191.21,1.8106441]
[1735690799056,16.48267585,191.26,191.22,1.8106441]
[1735690799423,16.48267585,191.26,191.19,16.48267585]
[1735690800056,16.48267585,191.26,191.22,20.0]
[1735690800235,16.48267585,191.27,191.22,20.0]
[1735690800436,16.48267585,191.26,191.2,1.80962627]
[1735690800962,16.48267585,191.27,191.2,16.48267585]
[1735690801322,16.48267585,191.28,191.21,36.48267585]
[1735690801527,16.48267585,191.27,191.21,24.70418276]
[1735690802254,16.48267585,191.28,191.22,1.8091748]
[1735690802457,16.48267585,191.3,191.22,19.86765065]
[1735690802664,16.48267585,191.33,191.26,16.48267585]
[1735690802863,16.48267585,191.34,191.27,16.48267585]
[1735690803162,16.48267585,191.34,191.27,18.29185065]
[1735690803959,16.48267585,191.34,191.28,1.8091748]
[1735690804252,16.48267585,191.33,191.28,1.8091748]
[1735690804762,16.48267585,191.33,191.26,39.37455376]
[1735690804939,16.48267585,191.32,191.26,22.89187791]
[1735690805350,16.48267585,191.3,191.26,2.89187791]
[1735690805552,16.48267585,191.3,191.23,16.48267585]
[1735690805871,16.48267585,191.3,191.23,36.48267585]
[1735690806177,16.48267585,191.3,191.24,1.80481464]
[1735690807175,16.48267585,191.3,191.23,36.48267585]
[1735690807381,16.48267585,191.31,191.24,16.48267585]
[1735690807563,16.48267585,191.32,191.25,16.48267585]
[1735690807869,16.48267585,191.32,191.25,18.28565426]
[1735690808451,16.48267585,191.32,191.25,16.48267585]
[1735690810371,16.48267585,191.3,191.23,20.0]
[1735690810579,16.48267585,191.3,191.23,36.48267585]
[1735690812148,16.48267585,191.31,191.24,16.48267585]
[1735690815877,16.48267585,191.3,191.23,36.48267585]
[1735690816945,16.48267585,191.28,191.23,20.0]
[1735690817880,67.967784,191.37,191.23,20.0]
[1735690817881,16.48267585,191.27,191.23,20.0]
[1735690818473,16.48267585,191.28,191.23,20.0]
[1735690818683,16.48267585,191.3,191.23,36.48267585]
[1735690819371,16.48267585,191.31,191.24,16.48267585]
[1735690819686,16.48267585,191.32,191.26,16.48267585]
[1735690820064,16.48267585,191.33,191.26,16.48267585]
[1735690820979,1.5402,191.39,191.3,16.48267585]
[1735690821157,16.48267585,191.37,191.3,16.48267585]
[1735690822678,16.48267585,191.38,191.31,18.12177585]
[1735690823378,16.48267585,191.41,191.33,16.48267585]
[1735690824066,16.48267585,191.41,191.34,16.48267585]
[1735690824658,16.48267585,191.41,191.33,39.14955185]
[1735690824888,16.48267585,191.4,191.33,39.14955185]
[1735690825186,16.48267585,191.4,191.33,6.1842]
[1735690825487,16.48267585,191.39,191.33,6.1842]
[1735690827468,16.48267585,191.37,191.31,18.121775]
[1735690827786,16.48267585,191.38,191.31,54.60445085]
[1735690828567,16.48267585,191.39,191.31,54.60445085]
[1735690829282,16.48267585,191.39,191.32,16.48267585]
[1735690829466,16.48267585,191.39,191.32,40.25955985]
[1735690829664,16.48267585,191.38,191.31,54.60445085]
[1735690829883,16.48267585,191.37,191.31,38.121775]
[1735690830082,16.48267585,191.37,191.31,21.6391]
[1735690831676,16.48267585,191.38,191.31,38.12177585]
[1735690833693,16.48267585,191.39,191.32,16.48267585]
[1735690833910,16.48267585,191.4,191.33,16.48267585]
[1735690834098,16.48267585,191.41,191.34,16.48267585]
[1735690834883,16.48267585,191.4,191.33,16.48267585]
[1735690835385,16.48267585,191.41,191.34,16.48267585]
[1735690835582,16.48267585,191.41,191.34,18.27906936]
[1735690835892,16.48267585,191.42,191.34,18.27906936]
[1735690836074,16.48267585,191.41,191.34,18.27906936]
[1735690836274,16.48267585,191.4,191.33,16.48267585]
[1735690836698,16.48267585,191.41,191.34,16.48267585]
[1735690837492,16.48267585,191.42,191.35,22.83137585]
[1735690839190,16.48267585,191.39,191.36,1.79714024]
[1735690839792,16.48267585,191.39,191.35,6.3487]
[1735690840501,16.48267585,191.4,191.35,6.3487]
[1735690842391,10.52075179,191.4,191.35,6.3487]
[1735690843482,10.52075179,191.41,191.35,6.3487]
[1735690845312,10.52075179,191.41,191.36,13.0578]
[1735690846212,10.52075179,191.41,191.35,6.3487]
[1735690846443,10.52075179,191.41,191.35,19.4065]
[1735690846592,13.0578,191.46,191.35,29.92725179]
[1735690846593,10.52075179,191.42,191.35,29.92725179]
[1735690846795,13.0559,191.49,191.39,10.52075179]
[1735690847106,10.52075179,191.46,191.39,10.52075179]
[1735690848208,10.52075179,191.45,191.38,12.08075179]
[1735690848385,10.52075179,191.39,191.35,19.4065]
[1735690848909,10.52075179,191.4,191.35,19.4065]
[1735690849393,10.52075179,191.38,191.35,13.0578]
[1735690849802,10.52075179,191.39,191.35,13.0578]
[1735690850098,10.52075179,191.39,191.33,1.56]
[1735690850305,16.44114917,191.4,191.34,1.798749]
[1735690851016,16.44114917,191.4,191.33,31.05894917]
[1735690851614,16.44114917,191.41,191.34,16.44114917]
[1735690852611,16.44114917,191.42,191.34,16.44114917]
[1735690853522,16.44114917,191.43,191.35,40.21803317]
[1735690853913,16.44114917,191.44,191.37,16.44114917]
[1735690854610,16.44114917,191.45,191.37,16.44114917]
[1735690855323,16.44114917,191.46,191.39,16.44114917]
[1735690855907,10.0,191.55,191.4,41.78083317]
[1735690855908,16.44114917,191.47,191.4,41.78083317]
[1735690856134,13.053,191.53,191.43,16.44114917]
[1735690856444,16.44114917,191.49,191.41,16.44114917]
[1735690856994,16.44114917,191.48,191.41,16.44114917]
[1735690857831,16.44114917,191.5,191.43,16.44114917]
[1735690858429,16.44114917,191.51,191.44,16.44114917]
[1735690858810,1.5888,191.55,191.45,16.44114917]
[1735690859010,16.44114917,191.52,191.45,16.44114917]
[1735690859219,14.6407,191.55,191.44,16.44114917]
[1735690859520,16.44114917,191.49,191.42,16.44114917]
[1735690860113,16.44114917,191.48,191.41,20.0]
[1735690860313,16.44114917,191.48,191.41,36.44114917]
[1735690861343,16.44114917,191.49,191.42,16.44114917]
[1735690861920,16.44114917,191.5,191.43,16.44114917]
[1735690862242,16.44114917,191.49,191.42,16.44114917]
[1735690862839,16.44114917,191.46,191.4,1.5628]
[1735690863041,16.44114917,191.45,191.4,1.5628]
[1735690864047,16.44114917,191.46,191.4,1.5628]
[1735690865449,13.0555,191.49,191.4,18.00394917]
[1735690865742,16.44114917,191.47,191.4,18.00394917]
[1735690866444,16.44114917,191.47,191.41,1.79956041]
[1735690866650,16.44114917,191.48,191.41,1.79956041]
[1735690867153,16.44114917,191.5,191.43,16.44114917]
[1735690867440,16.44114917,191.52,191.45,16.44114917]
[1735690868446,16.44114917,191.53,191.45,16.44114917]
[1735690868756,16.44114917,191.52,191.45,16.44114917]
[1735690869541,16.44114917,191.53,191.45,16.44114917]
[1735690869738,16.44114917,191.54,191.47,16.44114917]
[1735690869943,5.0,191.62,191.47,16.44114917]
[1735690869944,29.49064917,191.58,191.5,16.44114917]
[1735690870346,16.44114917,191.56,191.49,16.44114917]
[1735690871028,16.44114917,191.55,191.48,18.03924917]
[1735690871469,16.44114917,191.54,191.48,1.5981]
[1735690871654,16.44114917,191.53,191.48,1.5981]
[1735690872527,16.44114917,191.54,191.48,1.5981]
[1735690874360,16.44114917,191.53,191.48,1.5981]
[1735690874854,24.6475,191.61,191.48,18.03924917]
[1735690875160,16.44114917,191.57,191.5,16.44114917]
[1735690875842,16.44114917,191.56,191.49,16.44114917]
[1735690876360,16.44114917,191.57,191.5,16.44114917]
[1735690877360,16.44114917,191.61,191.54,16.44114917]
[1735690877654,16.44114917,191.62,191.55,16.44114917]
[1735690878037,16.44114917,191.61,191.54,16.44114917]
[1735690878258,16.44114917,191.6,191.53,16.44114917]
[1735690879859,16.44114917,191.57,191.5,16.44114917]
[1735690880162,16.44114917,191.58,191.51,16.44114917]
[1735690881376,16.44114917,191.57,191.5,16.44114917]
[1735690881669,16.44114917,191.56,191.49,16.44114917]
[1735690882239,16.44114917,191.52,191.48,1.5981]
[1735690882441,16.44114917,191.53,191.48,1.5981]
[1735690882963,16.44114917,191.54,191.48,1.5981]
[1735690884252,16.44114917,191.53,191.42,1.5941]
[1735690884467,16.44114917,191.48,191.42,1.5941]
[1735690884767,16.44114917,191.49,191.42,18.03524917]
[1735690884962,16.44114917,191.5,191.42,18.03524917]
[1735690885351,16.44114917,191.49,191.42,18.03524917]
[1735690886265,16.44114917,191.5,191.43,18.23343092]
[1735690886646,16.44114917,191.49,191.43,1.79228175]
[1735690886845,16.44114917,191.49,191.42,18.03524917]
[1735690887268,16.44114917,191.49,191.39,2.86777095]
[1735690887457,13.0518,191.55,191.4,2.86777095]
[1735690887458,16.44114917,191.44,191.4,2.86777095]
[1735690887778,16.44114917,191.45,191.4,2.86777095]
[1735690888181,16.44114917,191.45,191.38,18.03524917]
[1735690888775,16.44114917,191.46,191.39,36.44114917]
[1735690888991,16.44114917,191.49,191.41,16.44114917]
[1735690889586,16.44114917,191.48,191.4,16.44114917]
[1735690889787,16.44114917,191.47,191.42,1.79383249]
[1735690889989,16.44114917,191.46,191.42,1.79383249]
[1735690890281,16.44114917,191.45,191.42,1.79383249]
[1735690890488,16.44114917,191.45,191.4,1.79383249]
[1735690890854,16.44114917,191.45,191.38,31.09754917]
[1735690891791,16.44114917,191.45,191.39,1.7948169]
[1735690892259,16.44114917,191.46,191.4,1.7948169]
[1735690892457,16.44114917,191.45,191.4,1.7948169]
[1735690892860,16.44114917,191.43,191.38,1.5941]
[1735690893056,16.44114917,191.4,191.36,6.3942]
[1735690893256,16.44114917,191.41,191.36,6.3942]
[1735690893483,16.44114917,191.42,191.37,1.79549905]
[1735690893869,16.44114917,191.42,191.36,6.3942]
[1735690894587,16.44114917,191.43,191.36,6.3942]
[1735690894981,16.44114917,191.43,191.37,1.79566665]
[1735690895593,16.44114917,191.42,191.36,6.3942]
[1735690895961,16.44114917,191.41,191.34,16.44114917]
[1735690896394,16.44114917,191.4,191.33,18.03524917]
[1735690896974,16.44114917,191.4,191.34,4.67141483]
[1735690897996,16.44114917,191.4,191.35,1.79657261]
[1735690898363,16.44114917,191.39,191.35,1.79657261]
[1735690898558,16.44114917,191.39,191.34,2.87484222]
[1735690898559,16.44114917,191.39,191.36,1.79657261]
[1735690899019,16.44114917,191.37,191.36,1.79657261]
[1735690899185,16.44114917,191.37,191.29,16.44114917]
[1735690899486,16.44114917,191.36,191.29,16.44114917]
[1735690899674,16.44114917,191.37,191.29,16.44114917]
[1735690899870,16.44114917,191.37,191.29,19.6623257]
[1735690900077,16.44114917,191.36,191.3,4.67521048]
[1735690900278,16.44114917,191.35,191.3,4.67521048]
[1735690900468,16.44114917,191.34,191.3,4.67521048]
[1735690901167,16.44114917,191.33,191.31,1.79803234]
[1735690901381,16.44114917,191.32,191.31,1.79803234]
[1735690901572,16.44114917,191.32,191.27,2.87717814]
[1735690902085,16.44114917,191.32,191.25,16.44114917]
[1735690902779,16.44114917,191.32,191.26,1.79689954]
[1735690903291,16.44114917,191.3,191.26,1.79689954]
[1735690903471,16.44114917,191.3,191.25,1.79689954]
[1735690903872,16.44114917,191.31,191.25,1.79689954]
[1735690904183,16.44114917,191.31,191.24,18.23804871]
[1735690904376,16.44114917,191.3,191.24,1.79689954]
[1735690905182,16.44114917,191.3,191.26,20.0]
[1735690905384,16.44114917,191.3,191.24,1.79689954]
[1735690905581,16.44114917,191.29,191.24,1.79689954]
[1735690905781,16.44114917,191.28,191.23,6.2326]
[1735690905983,16.44114917,191.26,191.19,16.44114917]
[1735690906296,16.44114917,191.25,191.18,22.67374917]
[1735690906507,16.44114917,191.25,191.21,20.0]
[1735690906703,16.44114917,191.26,191.22,20.0]
[1735690907296,16.44114917,191.27,191.21,20.0]
[1735690907497,16.44114917,191.27,191.22,20.0]
[1735690908601,16.44114917,191.26,191.22,20.0]
[1735690908895,16.44114917,191.24,191.18,6.2326]
[1735690910789,16.44114917,191.24,191.17,18.03414917]
[1735690911374,16.44114917,191.24,191.17,1.593]
[1735690912174,16.44114917,191.24,191.15,29.51954917]
[1735690912382,16.44114917,191.22,191.15,16.44114917]
[1735690912782,16.44114917,191.22,191.16,1.78511428]
[1735690913401,16.44114917,191.22,191.15,16.44114917]
[1735690914035,16.44114917,191.22,191.14,22.90994917]
[1735690914407,16.44114917,191.22,191.17,20.0]
[1735690915382,16.44114917,191.22,191.14,22.90994917]
[1735690918112,16.44114917,191.21,191.14,6.4688]
[1735690919702,16.44114917,191.2,191.14,6.4688]
[1735690920217,16.44114917,191.21,191.14,6.4688]
[1735690922113,16.44114917,191.2,191.14,6.4688]
[1735690922317,10.54275157,191.2,191.14,6.4688]
[1735690922714,10.54275157,191.19,191.14,6.4688]
[1735690923108,10.54275157,191.2,191.14,6.4688]
[1735690924051,10.54275157,191.19,191.12,21.6272]
[1735690924192,10.54275157,191.16,191.09,19.4457]
[1735690924400,10.54275157,191.15,191.09,6.3632]
[1735690924807,10.54275157,191.16,191.09,16.90595157]
[1735690925206,10.54275157,191.15,191.09,6.3632]
[1735690926633,24.6725,191.24,191.1,10.54275157]
[1735690926929,10.54275157,191.2,191.12,10.54275157]
[1735690927120,19.1626,191.27,191.17,10.54275157]
[1735690927324,10.54275157,191.27,191.2,10.54275157]
[1735690927522,11.6,191.3,191.21,10.54275157]
[1735690927523,10.54275157,191.28,191.21,10.54275157]
[1735690927704,1.657,191.31,191.22,10.54275157]
[1735690927705,10.54275157,191.29,191.22,10.54275157]
[1735690927903,1.657,191.31,191.21,10.54275157]
[1735690928125,10.54275157,191.24,191.17,10.99617075]
[1735690928331,16.46777612,191.23,191.17,10.99617075]
[1735690928804,16.46777612,191.23,191.17,6.3632]
[1735690929207,16.46777612,191.22,191.16,1.5507]
[1735690929406,16.46777612,191.21,191.16,1.5507]
[1735690930009,16.46777612,191.19,191.15,2.85217012]
[1735690930201,16.46777612,191.18,191.15,2.85217012]
[1735690930422,16.46777612,191.17,191.15,2.85217012]
[1735690930624,16.46777612,191.17,191.12,6.3632]
[1735690930625,16.46777612,191.17,191.16,1.78278992]
[1735690931122,16.46777612,191.17,191.11,1.5507]
[1735690931424,16.46777612,191.16,191.11,1.5507]
[1735690931826,16.46777612,191.16,191.12,4.64343423]
[1735690932704,16.46777612,191.15,191.13,1.78581158]
[1735690932910,16.46777612,191.14,191.13,1.78581158]
[1735690933614,16.46777612,191.15,191.08,22.83097612]
[1735690933818,16.46777612,191.15,191.09,26.63643451]
[1735690934133,16.46777612,191.15,191.09,2.85955051]
[1735690934313,16.46777612,191.13,191.09,2.85955051]
[1735690934739,16.46777612,191.13,191.1,1.78824546]
[1735690935326,16.46777612,191.13,191.11,1.78824546]
[1735690936131,16.46777612,191.13,191.12,1.78824546]
[1735690940330,16.46777612,191.13,191.07,2.8704212]
[1735690940536,16.46777612,191.12,191.07,2.8704212]
[1735690940925,48.453484,191.19,191.07,2.8704212]
[1735690940926,16.46777612,191.1,191.07,2.8704212]
[1735690941124,16.46777612,191.1,191.08,4.66505473]
[1735690941331,16.46777612,191.12,191.08,4.66505473]
[1735690942115,16.46777612,191.12,191.09,4.66505473]
[1735690943010,16.46777612,191.11,191.1,1.79463353]
[1735690943324,16.46777612,191.12,191.1,1.79463353]
[1735690943632,16.46777612,191.11,191.06,1.5507]
[1735690944337,16.46777612,191.11,191.07,4.67789164]
[1735690945346,16.46777612,191.11,191.08,4.67789164]
[1735690946045,16.46777612,191.11,191.09,1.79906349]
[1735690946722,16.46777612,191.11,191.1,1.79906349]
[1735690949649,16.46777612,191.13,191.1,1.79906349]
[1735690949815,16.46777612,191.15,191.1,1.79906349]
[1735690950226,10.54829867,191.14,191.1,1.79906349]
[1735690950435,10.54829867,191.14,191.11,4.68220613]
[1735690951140,10.54829867,191.14,191.12,1.79906349]
[1735690951445,10.54829867,191.13,191.12,1.79906349]
[1735690951638,10.54829867,191.13,191.07,20.0]
[1735690951943,10.54829867,191.11,191.07,20.0]
[1735690952322,16.48790033,191.11,191.07,20.0]
[1735690952517,16.48790033,191.12,191.08,1.80286693]
[1735690953144,16.48790033,191.12,191.09,1.80286693]
[1735690953744,16.48790033,191.13,191.09,1.80286693]
[1735690954060,16.48790033,191.13,191.07,20.0]
[1735690954424,16.48790033,191.12,191.08,1.80376987]
[1735690954947,16.48790033,191.12,191.09,1.80376987]
[1735690955661,16.48790033,191.12,191.07,20.0]
[1735690956353,16.48790033,191.12,191.08,1.80426267]
[1735690957047,16.48790033,191.12,191.07,20.0]
[1735690958760,16.48790033,191.12,191.08,1.80515334]
[1735690959366,16.48790033,191.12,191.07,20.0]
[1735690961029,16.48790033,191.08,191.03,6.3632]
[1735690961234,16.48790033,191.08,191.02,1.5243]
[1735690961758,16.48790033,191.1,191.04,23.776884]
[1735690962448,7.8309,191.15,191.04,23.776884]
[1735690962449,16.48790033,191.13,191.06,23.776884]
[1735690962669,16.48790033,191.14,191.06,40.26478433]
[1735690963041,16.48790033,191.13,191.06,23.776884]
[1735690963560,16.48790033,191.13,191.07,4.69466763]
[1735690964358,16.48790033,191.12,191.08,1.80646722]
[1735690964746,16.48790033,191.11,191.08,1.80646722]
[1735690965053,16.48790033,191.11,191.09,1.80646722]
[1735690965442,16.48790033,191.1,191.09,1.80646722]
[1735690965634,16.48790033,191.1,191.06,2.88982746]
[1735690965836,16.48790033,191.07,191.06,2.88982746]
[1735690966642,16.48790033,191.07,191.03,2.88982746]
[1735690966862,16.48790033,191.06,191.03,2.88982746]
[1735690967162,16.48790033,191.05,191.03,2.88982746]
[1735690967540,16.48790033,191.05,191.0,2.88982746]
[1735690968270,16.48790033,191.05,191.01,1.80684566]
[1735690968478,16.48790033,191.04,191.01,1.80684566]
[1735690968967,16.48790033,191.03,191.01,1.80684566]
[1735690969264,16.48790033,191.03,190.99,2.89137888]
[1735690969570,16.48790033,191.03,190.99,22.89137888]
[1735690970069,16.48790033,191.03,191.0,1.8065883]
[1735690970441,16.48790033,191.02,191.0,1.8065883]
[1735690970643,16.48790033,191.02,190.98,1.8065883]
[1735690970940,16.48790033,191.0,190.98,1.8065883]
[1735690971345,16.48790033,190.99,190.94,2.89172368]
[1735690971657,16.48790033,191.0,190.94,2.89172368]
[1735690972060,16.48790033,191.01,190.94,2.89172368]
[1735690972261,16.48790033,191.02,190.94,19.37962401]
[1735690972452,16.48790033,191.02,190.94,16.48790033]
[1735690973369,16.48790033,191.02,190.95,18.29349163]
[1735690973569,16.48790033,191.02,190.95,21.18521531]
[1735690974367,10.5640221,191.01,190.96,1.8055913]
[1735690974666,10.5640221,191.02,190.96,1.8055913]
[1735690974852,8.2518,191.05,190.96,1.8055913]
[1735690974853,1.6388,191.05,190.96,1.8055913]
[1735690975046,10.5640221,191.03,190.96,1.8055913]
[1735690975246,1.6388,191.05,190.97,4.69680898]
[1735690975467,10.5640221,191.03,190.97,4.69680898]
[1735690975871,10.5640221,191.03,190.98,4.69680898]
[1735690976549,20.0,191.06,190.99,1.8055913]
[1735690976550,10.5640221,191.04,190.99,1.8055913]
[1735690977166,10.5640221,191.03,191.0,1.8055913]
[1735690978045,10.5640221,191.03,190.97,2.89293297]
[1735690978877,10.5640221,191.03,190.98,4.70042689]
[1735690979646,10.5640221,191.03,190.99,1.80749392]
[1735690979848,63.5903884,191.1,190.99,1.80749392]
[1735690979849,8.2518,191.1,190.99,1.80749392]
[1735690980046,10.5640221,191.05,190.99,1.80749392]
[1735690980274,10.5640221,191.02,190.99,1.80749392]
[1735690980462,10.5640221,191.02,191.0,1.80749392]
[1735690981047,10.5640221,191.02,190.97,3.23562329]
[1735690981467,10.5640221,191.02,190.96,6.2071]
[1735690981972,10.5640221,191.02,190.97,4.6974905]